bitfinex/quotes_BTCUSD_20251221
["timestamp","ask_amount","ask_price","bid_price","bid_amount"]
[1766329560903,0.02954218,88047.0,88027.0,0.01136015]
[1766329560904,0.40221,88038.0,88027.0,0.01136015]
[1766329561108,0.000549,88030.0,88027.0,0.01136015]
[1766329561307,0.89504,88038.0,88026.0,0.27925027]
[1766329561308,0.49283,88038.0,88026.0,0.27925027]
[1766329561530,0.49283,88036.0,88026.0,0.26789]
[1766329561746,0.49283,88032.0,88022.0,0.01136079]
[1766329561964,0.89504,88029.0,88020.0,0.01136105]
[1766329562106,0.000549,88022.0,88020.0,0.00035794]
[1766329562624,0.40221,88026.0,88020.0,0.01171899]
[1766329562855,0.00568,88027.0,88022.0,0.01136079]
[1766329563063,0.00568,88027.0,88023.0,0.01136066]
[1766329563223,0.06814902,88043.0,88026.0,0.01136027]
[1766329563224,0.40221,88035.0,88026.0,0.01136027]
[1766329563421,0.40221,88034.0,88025.0,0.0113604]
[1766329563697,0.00568,88033.0,88027.0,0.01136015]
[1766329563902,0.00568,88032.0,88027.0,0.27925015]
[1766329564119,0.00568,88031.0,88029.0,0.01135989]
[1766329564268,0.00568,88031.0,88028.0,0.01136002]
[1766329565883,0.00568,88035.0,88032.0,0.0113595]
[1766329566088,0.00568,88036.0,88032.0,0.0113595]
[1766329566266,0.00568,88036.0,88033.0,0.01135937]
[1766329566470,0.00568,88036.0,88032.0,0.0113595]
[1766329566672,0.49283,88041.0,88033.0,0.06815617]
[1766329566989,0.06814013,88054.0,88033.0,0.01135937]
[1766329566990,0.00568,88040.0,88033.0,0.01135937]
[1766329567552,0.00568,88041.0,88034.0,0.01135924]
[1766329567784,0.00568,88041.0,88033.0,0.01135937]
[1766329568659,0.00568,88040.0,88035.0,0.01135911]
[1766329568855,0.00568,88040.0,88034.0,0.01135924]
[1766329569060,0.03413138,88051.0,88030.0,0.50955671]
[1766329569061,0.03413138,88051.0,88036.0,0.01135898]
[1766329569280,0.03413138,88051.0,88040.0,0.25652847]
[1766329569281,0.00568,88050.0,88040.0,0.25652847]
[1766329569478,0.00568,88050.0,88041.0,0.01135834]
[1766329570257,0.00568,88050.0,88040.0,0.25652847]
[1766329570258,0.36832,88052.0,88042.0,0.01135821]
[1766329570432,0.36832,88052.0,88040.0,0.24517]
[1766329570433,0.00568,88052.0,88045.0,0.01135782]
[1766329570625,0.00568,88052.0,88044.0,0.01135795]
[1766329571413,0.01135563,88062.0,88043.0,0.01135808]
[1766329571414,0.36832,88062.0,88046.0,0.24517]
[1766329571766,0.22706934,88079.0,88062.0,0.01135563]
[1766329571767,0.00568,88065.0,88062.0,0.01135563]
[1766329571977,0.00568,88065.0,88061.0,0.01135576]
[1766329571978,0.00568,88068.0,88061.0,0.06813456]
[1766329572111,0.00568,88068.0,88064.0,0.01135537]
[1766329572308,0.36832,88078.0,88064.0,0.25029637]
[1766329572714,0.47132,88079.0,88064.0,0.23949]
[1766329572715,0.0170337,88077.0,88064.0,0.23949]
[1766329572945,0.374,88077.0,88064.0,0.23949]
[1766329573119,0.36832,88076.0,88064.0,0.23949]
[1766329573783,0.36832,88075.0,88064.0,0.25084537]
[1766329574106,0.36832,88075.0,88064.0,0.23949]
[1766329575150,0.00568,88074.0,88064.0,0.23949]
[1766329575766,0.374,88074.0,88061.0,0.01135576]
[1766329576069,0.374,88074.0,88060.0,0.01135589]
[1766329576769,0.374,88074.0,88061.0,0.01135576]
[1766329577176,0.374,88074.0,88060.0,0.01135589]
[1766329577355,0.00055,88060.0,88059.0,0.23949]
[1766329577757,0.36832,88073.0,88059.0,0.25084602]
[1766329578786,0.36832,88073.0,88060.0,0.01135589]
[1766329579988,0.36832,88073.0,88061.0,0.01135576]
[1766329580194,0.00568,88072.0,88061.0,0.25084576]
[1766329580756,0.00568,88071.0,88061.0,0.01135576]
[1766329580966,0.0113537,88077.0,88058.0,0.01135615]
[1766329580967,0.00055,88061.0,88058.0,0.01135615]
[1766329581166,0.00055,88061.0,88058.0,0.25084615]
[1766329581381,0.477,88070.0,88058.0,0.25084615]
[1766329581580,1.477,88070.0,88058.0,0.25084615]
[1766329581784,1.477,88070.0,88058.0,0.23949]
[1766329581998,1.477,88070.0,88058.0,0.25084615]
[1766329582933,1.477,88070.0,88059.0,0.01135602]
[1766329583724,1.477,88070.0,88058.0,0.23949]
[1766329583874,1.477,88070.0,88059.0,0.01135602]
[1766329584901,1.477,88070.0,88061.0,0.01135576]
[1766329585304,1.477,88070.0,88062.0,0.01135563]
[1766329585722,1.477,88070.0,88063.0,0.0113555]
[1766329586348,1.477,88070.0,88062.0,0.01135563]
[1766329586560,1.477,88070.0,88063.0,0.0113555]
[1766329587334,1.477,88070.0,88064.0,0.01135537]
[1766329587535,1.477,88070.0,88063.0,0.0113555]
[1766329587790,1.477,88070.0,88064.0,0.01135537]
[1766329588130,1.477,88070.0,88063.0,0.0113555]
[1766329588332,1.00568,88070.0,88063.0,0.0113555]
[1766329588756,1.00568,88070.0,88064.0,0.01135537]
[1766329590780,0.36832,88069.0,88061.0,0.01135576]
[1766329590968,1.00568,88070.0,88060.0,0.01135589]
[1766329591117,0.83964,88069.0,88061.0,0.01135576]
[1766329591314,0.83964,88069.0,88062.0,0.01135563]
[1766329592065,0.83964,88069.0,88064.0,0.01135537]
[1766329592250,0.83964,88069.0,88063.0,0.0113555]
[1766329592955,0.00055,88063.0,88062.0,0.01135563]
[1766329593211,0.83974734,88069.0,88062.0,0.01135563]
[1766329594202,0.83974734,88069.0,88063.0,0.0113555]
[1766329594622,0.00055,88063.0,88061.0,0.06813412]
[1766329595290,0.83974734,88069.0,88062.0,0.01135563]
[1766329595911,0.83974734,88069.0,88060.0,0.01135589]
[1766329596113,0.38386,88068.0,88060.0,0.01135589]
[1766329596311,0.85175,88068.0,88060.0,0.01135589]
[1766329596713,0.85175,88068.0,88061.0,0.01135576]
[1766329596947,0.85175,88068.0,88060.0,0.01135589]
[1766329597153,0.38386,88067.0,88062.0,0.01135563]
[1766329597360,0.38386,88067.0,88061.0,0.01135576]
[1766329597536,0.38386,88067.0,88060.0,0.01135589]
[1766329597741,0.38386,88067.0,88061.0,0.01135576]
[1766329598058,0.85175,88067.0,88061.0,0.01135576]
[1766329598258,0.85175,88067.0,88060.0,0.01135589]
[1766329598466,0.85175,88067.0,88061.0,0.01135576]
[1766329598673,0.00010734,88069.0,88061.0,0.01135576]
[1766329598822,0.00010734,88069.0,88060.0,0.01135589]
[1766329599211,0.00010734,88069.0,88061.0,0.01135576]
[1766329599417,0.00010734,88069.0,88062.0,0.01135563]
[1766329599616,0.00010734,88069.0,88060.0,0.01135589]
[1766329599820,0.00010734,88069.0,88061.0,0.01135576]
[1766329603646,0.00010734,88069.0,88065.0,0.01135524]
[1766329603854,1.00568,88070.0,88065.0,0.01135524]
[1766329604053,0.24385212,88070.0,88067.0,0.01135499]
[1766329604257,0.13448376,88070.0,88068.0,0.05677431]
[1766329605082,0.12880376,88070.0,88068.0,0.05677431]
[1766329606752,0.22606059,88083.0,88078.0,0.01135357]
[1766329606958,0.22606059,88083.0,88080.0,0.01135331]
[1766329608289,0.22606059,88083.0,88078.0,0.01135357]
[1766329608290,0.000549,88080.0,88078.0,0.01135357]
[1766329608451,0.22606059,88083.0,88075.0,0.01135395]
[1766329608655,0.00055,88078.0,88075.0,0.01135395]
[1766329609093,0.22606059,88083.0,88075.0,0.01135395]
[1766329609303,0.22606059,88083.0,88076.0,0.01135383]
[1766329609709,0.22606059,88083.0,88075.0,0.01135395]
[1766329609928,0.22606059,88083.0,88076.0,0.01135383]
[1766329610241,0.22606059,88083.0,88075.0,0.01135395]
[1766329611208,0.22606059,88083.0,88076.0,0.01135383]
[1766329612383,0.22606059,88083.0,88075.0,0.01135395]
[1766329613327,0.22606059,88083.0,88076.0,0.01135383]
[1766329613803,0.22606059,88083.0,88078.0,0.01135357]
[1766329614012,0.000549,88078.0,88075.0,0.01135395]
[1766329614182,0.22606059,88083.0,88075.0,0.01135395]
[1766329614183,0.22606059,88083.0,88076.0,0.01135383]
[1766329614674,0.22606059,88083.0,88077.0,0.0113537]
[1766329615031,0.22606059,88083.0,88080.0,0.01135331]
[1766329615890,0.22606059,88083.0,88078.0,0.01135357]
[1766329616432,0.22606059,88083.0,88074.0,0.01135408]
[1766329616653,0.22606059,88083.0,88075.0,0.01135395]
[1766329616654,0.000549,88078.0,88075.0,0.01135395]
[1766329616864,0.22606059,88083.0,88076.0,0.01135383]
[1766329617633,0.22606059,88083.0,88077.0,0.0113537]
[1766329619407,0.22606059,88083.0,88078.0,0.01135357]
[1766329620395,0.22606059,88083.0,88075.0,0.01135395]
[1766329621684,0.22606059,88083.0,88074.0,0.01135408]
[1766329621886,0.22606059,88083.0,88073.0,0.00568]
[1766329622107,0.22606059,88083.0,88040.0,0.00099999]
[1766329622108,0.05732143,88073.0,88054.0,0.03411399]
[1766329622354,0.46515154,88062.0,88046.0,0.00964111]
[1766329622554,0.46515154,88062.0,88039.0,0.00568]
[1766329622555,0.46789,88052.0,88036.0,0.06815386]
[1766329622801,0.05678269,88056.0,88036.0,0.06815386]
[1766329622802,0.05678269,88056.0,88036.0,0.00568]
[1766329622803,0.38386,88045.0,88036.0,0.00568]
[1766329622975,0.46789,88041.0,88035.0,0.01135911]
[1766329623181,0.46789,88041.0,88036.0,4.94e-06]
[1766329623182,0.38386,88040.0,88036.0,4.94e-06]
[1766329623389,0.46789,88041.0,88038.0,0.06815224]
[1766329623620,0.46789,88041.0,88038.0,0.01135873]
[1766329623916,0.85175,88041.0,88038.0,0.01135873]
[1766329624618,0.85175,88041.0,88037.0,0.01135886]
[1766329624843,0.85175,88041.0,88038.0,0.01135873]
[1766329626156,0.85175,88041.0,88036.0,4.94e-06]
[1766329626356,0.00568,88045.0,88036.0,4.94e-06]
[1766329626658,0.00568,88045.0,88028.0,0.0567996]
[1766329626659,0.89421,88044.0,88028.0,0.01136002]
[1766329626869,0.01703782,88045.0,88030.0,0.01135976]
[1766329626870,0.00568,88045.0,88030.0,0.01135976]
[1766329627065,0.00568,88045.0,88029.0,0.01135989]
[1766329627510,0.00568,88045.0,88030.0,0.01135976]
[1766329627641,0.00568,88044.0,88033.0,0.06815605]
[1766329627842,0.01818461,88048.0,88038.0,0.01135873]
[1766329627843,0.40676,88048.0,88038.0,0.01135873]
[1766329628051,0.00568,88047.0,88038.0,0.00864971]
[1766329628262,0.41244,88047.0,88037.0,0.01135886]
[1766329628800,0.89421,88046.0,88037.0,0.01135886]
[1766329629012,0.40676,88045.0,88038.0,0.01135873]
[1766329629185,0.41244,88045.0,88037.0,0.01135886]
[1766329629337,0.41244,88045.0,88038.0,0.01135873]
[1766329629679,0.40676,88045.0,88038.0,0.01135873]
[1766329629845,0.00568,88044.0,88038.0,0.01135873]
[1766329630052,0.00568,88044.0,88037.0,0.01135886]
[1766329630251,0.00568,88043.0,88037.0,0.01135886]
[1766329630842,0.00568,88043.0,88038.0,0.01135873]
[1766329632601,0.00568,88043.0,88039.0,0.0113586]
[1766329632931,0.00568,88043.0,88038.0,0.01135873]
[1766329634518,0.00568,88043.0,88037.0,0.01135886]
[1766329634938,0.00568,88043.0,88038.0,0.01135873]
[1766329636353,0.41244,88043.0,88038.0,0.01135873]
[1766329636940,0.40676,88043.0,88040.0,0.01135847]
[1766329637216,0.41244,88043.0,88038.0,0.01135873]
[1766329638205,0.40676,88043.0,88037.0,0.01135886]
[1766329639392,0.40676,88043.0,88038.0,0.01135873]
[1766329640110,0.40676,88043.0,88039.0,0.0113586]
[1766329640312,0.40676,88043.0,88038.0,0.01135873]
[1766329640686,0.41244,88043.0,88038.0,0.01135873]
[1766329641793,0.40676,88043.0,88038.0,0.01135873]
[1766329642177,0.40676,88043.0,88039.0,0.0113586]
[1766329643379,0.40676,88043.0,88038.0,0.01135873]
[1766329643851,0.40676,88043.0,88038.0,0.01080973]
[1766329646206,0.40676,88043.0,88039.0,0.0113586]
[1766329646418,0.00055,88039.0,88038.0,0.01135873]
[1766329646814,0.40676,88043.0,88038.0,0.01135873]
[1766329648760,0.00568,88044.0,88039.0,0.0113586]
[1766329649166,0.00568,88044.0,88038.0,0.01135873]
[1766329649572,0.41244,88044.0,88038.0,0.01135873]
[1766329650785,0.41244,88044.0,88039.0,0.0113586]
[1766329651349,0.41244,88044.0,88038.0,0.01135873]
[1766329651707,0.41244,88044.0,88039.0,0.0113586]
[1766329651912,0.41244,88044.0,88038.0,0.01135873]
[1766329652115,0.41244,88044.0,88039.0,0.0113586]
[1766329652741,0.0001,88048.0,88039.0,0.0113586]
[1766329652742,0.00568,88045.0,88039.0,0.0113586]
[1766329653105,0.00568,88045.0,88040.0,0.01135847]
[1766329653477,0.0001,88048.0,88045.0,0.000549]
[1766329654067,0.0001,88048.0,88041.0,0.01135834]
[1766329654068,0.0001,88048.0,88040.0,0.01135847]
[1766329654284,0.0001,88048.0,88041.0,0.01135834]
[1766329654690,0.0001,88048.0,88040.0,0.01135847]
[1766329656274,0.0001,88048.0,88041.0,0.01135834]
[1766329656486,0.0001,88048.0,88042.0,0.01135821]
[1766329656681,0.0001,88048.0,88041.0,0.01135834]
[1766329658524,0.0002,88048.0,88041.0,0.01135834]
[1766329659281,0.0002,88048.0,88042.0,0.01135821]
[1766329659487,0.0002,88048.0,88041.0,0.01135834]
[1766329659704,0.0002,88048.0,88042.0,0.01135821]
[1766329660190,0.00395943,88049.0,88044.0,0.01135795]
[1766329660915,0.00395943,88049.0,88045.0,0.01135782]
[1766329661116,0.00395943,88049.0,88044.0,0.01135795]
[1766329661317,0.00395943,88049.0,88043.0,0.01135808]
[1766329661499,0.00395943,88049.0,88044.0,0.01135795]
[1766329662107,0.00395943,88049.0,88043.0,0.01135808]
[1766329662515,0.00010724,88062.0,88049.0,0.01170631]
[1766329662713,0.00568,88061.0,88051.0,0.01135705]
[1766329662911,0.3697,88061.0,88054.0,0.01135666]
[1766329663138,0.3697,88061.0,88051.0,0.01135705]
[1766329663331,0.3697,88061.0,88053.0,0.01135679]
[1766329663732,0.3697,88060.0,88053.0,0.01115679]
[1766329664140,0.3697,88060.0,88052.0,0.01135692]
[1766329664341,0.3697,88060.0,88053.0,0.01135679]
[1766329664541,0.3697,88060.0,88054.0,0.01135666]
[1766329665620,0.3697,88060.0,88053.0,0.01135679]
[1766329666510,0.3697,88060.0,88054.0,0.01135666]
[1766329667134,0.01135447,88071.0,88051.0,0.06814176]
[1766329667135,0.00568,88066.0,88060.0,0.157789]
[1766329667427,0.00568,88066.0,88060.0,0.15724]
[1766329667878,0.86534,88071.0,88060.0,0.15724]
[1766329668121,0.86534,88071.0,88060.0,0.62283548]
[1766329668122,0.00568,88067.0,88060.0,0.62283548]
[1766329668296,0.00568,88072.0,88067.0,0.000549]
[1766329668528,0.00568,88072.0,88064.0,0.01135537]
[1766329668865,0.00568,88072.0,88063.0,0.1685955]
[1766329669464,0.00568,88072.0,88060.0,0.48263137]
[1766329669659,0.87102,88072.0,88061.0,0.01135576]
[1766329669913,0.3697,88071.0,88062.0,0.01135563]
[1766329670277,0.3697,88071.0,88061.0,0.01135576]
[1766329671089,0.3697,88071.0,88062.0,0.01135563]
[1766329672696,0.3697,88071.0,88061.0,0.01135576]
[1766329673298,0.3697,88071.0,88062.0,0.01135563]
[1766329675659,0.3697,88071.0,88061.0,0.01135576]
[1766329675885,0.3697,88071.0,88062.0,0.01135563]
[1766329676087,0.3697,88071.0,88061.0,0.01135576]
[1766329676315,0.3697,88071.0,88062.0,0.01135563]
[1766329676727,0.3697,88071.0,88063.0,0.0113555]
[1766329677315,0.3697,88071.0,88062.0,0.01135563]
[1766329677517,0.3697,88071.0,88063.0,0.0113555]
[1766329677725,0.3697,88071.0,88062.0,0.01135563]
[1766329677928,0.3697,88071.0,88063.0,0.0113555]
[1766329678083,0.3697,88071.0,88062.0,0.01135563]
[1766329679003,0.50132,88072.0,88062.0,0.01135563]
[1766329679004,0.50132,88072.0,88064.0,0.01135537]
[1766329680284,0.3697,88071.0,88063.0,0.0113555]
[1766329680475,0.50132,88072.0,88062.0,0.01135563]
[1766329680698,0.50132,88072.0,88063.0,0.0113555]
[1766329681277,0.50132,88072.0,88062.0,0.01135563]
[1766329682066,0.50132,88072.0,88063.0,0.0113555]
[1766329684299,0.49564,88072.0,88065.0,0.01135524]
[1766329684499,0.49564,88072.0,88064.0,0.01135537]
[1766329685209,0.85797,88072.0,88064.0,0.01135537]
[1766329686047,0.49564,88072.0,88063.0,0.0113555]
[1766329686956,0.49564,88072.0,88064.0,0.01135537]
[1766329687439,0.49564,88072.0,88065.0,0.01135524]
[1766329688497,0.49564,88072.0,88064.0,0.01135537]
[1766329688706,0.49564,88072.0,88065.0,0.01135524]
[1766329689454,0.49564,88072.0,88064.0,0.01135537]
[1766329689709,0.49564,88072.0,88065.0,0.01135524]
[1766329690286,0.49564,88072.0,88064.0,0.01135537]
[1766329690487,0.49564,88072.0,88063.0,0.0113555]
[1766329690690,0.49564,88072.0,88064.0,0.01135537]
[1766329691086,0.49564,88072.0,88065.0,0.01135524]
[1766329692767,0.49564,88072.0,88066.0,0.01135512]
[1766329692970,0.49564,88072.0,88065.0,0.01135524]
[1766329693909,0.49564,88072.0,88066.0,0.01135512]
[1766329694312,0.00568,88073.0,88072.0,0.000549]
[1766329694512,0.00568,88074.0,88072.0,0.000549]
[1766329694737,0.00568,88074.0,88070.0,0.0113546]
[1766329695112,0.85463,88078.0,88069.0,0.01135473]
[1766329695433,0.85463,88078.0,88068.0,0.02498069]
[1766329695639,0.00568,88077.0,88069.0,0.01135473]
[1766329695816,0.85463,88078.0,88070.0,0.0113546]
[1766329696003,0.85463,88078.0,88068.0,0.01135486]
[1766329696208,0.00568,88077.0,88069.0,0.01362567]
[1766329696406,0.00568,88077.0,88069.0,0.0249804]
[1766329696784,0.00568,88077.0,88068.0,0.01135486]
[1766329697259,0.00568,88077.0,88069.0,0.01135473]
[1766329697559,0.00568,88077.0,88068.0,0.01135486]
[1766329697792,0.00568,88077.0,88070.0,0.0113546]
[1766329698007,0.00568,88077.0,88069.0,0.01135473]
[1766329698168,0.00568,88077.0,88067.0,0.01135499]
[1766329698537,0.00568,88077.0,88068.0,0.01135486]
[1766329698737,0.00568,88077.0,88066.0,0.16292]
[1766329698992,0.85463,88078.0,88066.0,0.17427512]
[1766329699159,0.86031,88078.0,88066.0,0.17427512]
[1766329699355,0.36233,88077.0,88066.0,0.17427512]
[1766329700575,0.36233,88075.0,88066.0,0.00513]
[1766329700780,0.85463,88075.0,88066.0,0.00513]
[1766329700958,0.36233,88074.0,88066.0,0.00513]
[1766329702998,0.36233,88074.0,88066.0,0.01648512]
[1766329703203,0.36233,88074.0,88066.0,0.00513]
[1766329703770,0.00568,88078.0,88074.0,0.000549]
[1766329704407,0.00568,88078.0,88068.0,0.01135486]
[1766329705001,0.00568,88078.0,88069.0,0.01135473]
[1766329705432,0.005131,88078.0,88072.0,0.16859434]
[1766329705627,1e-06,88078.0,88072.0,0.16859434]
[1766329705798,0.02453407,88082.0,88072.0,0.16859434]
[1766329705799,0.00568,88081.0,88072.0,0.16859434]
[1766329706181,0.02453407,88082.0,88072.0,0.16859434]
[1766329706386,0.00568,88081.0,88072.0,0.16859434]
[1766329707589,0.23174059,88083.0,88081.0,0.00055]
[1766329708197,0.23174059,88083.0,88078.0,0.01135357]
[1766329708391,0.23174059,88083.0,88077.0,0.0113537]
[1766329708854,0.07340059,88083.0,88080.0,0.01135331]
[1766329709012,0.07340059,88083.0,88078.0,0.01135357]
[1766329709610,0.07340059,88083.0,88077.0,0.0113537]
[1766329709812,0.07340059,88083.0,88078.0,0.01135357]
[1766329711133,0.000549,88078.0,88075.0,0.01135395]
[1766329711439,0.07340059,88083.0,88077.0,0.0113537]
[1766329711763,0.07340059,88083.0,88078.0,0.01135357]
[1766329711946,0.07340059,88083.0,88077.0,0.0113537]
[1766329712153,0.07340059,88083.0,88078.0,0.01135357]
[1766329713272,0.07340059,88083.0,88075.0,0.01135395]
[1766329713473,0.07340059,88083.0,88076.0,0.01135383]
[1766329713932,0.07340059,88083.0,88074.0,0.01703408]
[1766329714158,0.07340059,88083.0,88075.0,0.01135395]
[1766329714378,0.07340059,88083.0,88074.0,0.00568]
[1766329714785,0.07340059,88083.0,88074.0,0.005131]
[1766329717411,0.07340059,88083.0,88074.0,0.01648508]
[1766329717832,0.07340059,88083.0,88075.0,0.01135395]
[1766329718705,0.07340059,88083.0,88076.0,0.01135383]
[1766329719094,0.07340059,88083.0,88074.0,0.01648508]
[1766329719613,0.07340059,88083.0,88075.0,0.01135395]
[1766329720280,0.07340059,88083.0,88074.0,0.01648508]
[1766329720718,0.07340059,88083.0,88075.0,0.01135395]
[1766329721462,0.07340059,88083.0,88074.0,0.01648508]
[1766329722148,0.07340059,88083.0,88075.0,0.01135395]
[1766329722614,0.07340059,88083.0,88074.0,0.01648508]
[1766329722863,0.07340059,88083.0,88075.0,0.01135395]
[1766329723272,0.07340059,88083.0,88074.0,0.01648508]
[1766329724956,0.07340059,88083.0,88074.0,0.005131]
[1766329727610,0.07340059,88083.0,88074.0,0.01648508]
[1766329727831,0.07340059,88083.0,88074.0,0.005131]
[1766329729839,0.07340059,88083.0,88074.0,0.01648508]
[1766329730041,0.07340059,88083.0,88074.0,0.005131]
[1766329730533,0.07340059,88083.0,88074.0,0.01648508]
[1766329731511,0.07340059,88083.0,88076.0,0.01135383]
[1766329731709,0.07340059,88083.0,88075.0,0.01135395]
[1766329732130,0.07340059,88083.0,88074.0,0.005131]
[1766329741080,0.07340059,88083.0,88072.0,0.01135434]
[1766329741081,0.46652,88081.0,88068.0,0.05677369]
[1766329741281,0.46652,88081.0,88046.0,0.01135769]
[1766329741282,0.46652,88062.0,88046.0,0.01135769]
[1766329741641,0.33679,88055.0,88047.0,0.00568]
[1766329741856,0.00568,88064.0,88051.0,0.01135705]
[1766329741857,0.33679,88063.0,88051.0,0.01135705]
[1766329742035,0.33679,88063.0,88055.0,0.01190553]
[1766329742238,0.01135434,88072.0,88059.0,0.01135602]
[1766329742239,0.34247,88069.0,88059.0,0.01135602]
[1766329742431,0.02271152,88080.0,88059.0,0.01135602]
[1766329742432,0.00568,88074.0,88063.0,0.0113555]
[1766329742613,0.00568,88074.0,88063.0,0.0170355]
[1766329742614,0.34247,88074.0,88063.0,0.0170355]
[1766329742812,0.02453616,88073.0,88063.0,0.0170355]
[1766329743032,0.34247,88074.0,88063.0,0.0170355]
[1766329743405,0.34247,88074.0,88063.0,0.00568]
[1766329743824,0.34247,88074.0,88063.0,0.0170355]
[1766329744223,0.33679,88074.0,88063.0,0.00568]
[1766329744654,0.80331,88074.0,88063.0,0.00568]
[1766329745033,0.80331,88074.0,88064.0,0.01135537]
[1766329745818,0.80331,88074.0,88063.0,0.00568]
[1766329747670,0.02669563,88077.0,88053.0,0.0567839]
[1766329747671,0.00055,88063.0,88053.0,0.0567839]
[1766329747918,0.3321401,88062.0,88056.0,0.0113564]
[1766329748149,0.3321401,88062.0,88057.0,0.01135628]
[1766329748289,0.3321401,88062.0,88058.0,0.01135615]
[1766329748487,0.3321401,88062.0,88059.0,0.00568]
[1766329750513,0.3321401,88062.0,88060.0,0.00568]
[1766329753030,4.01e-05,88062.0,88060.0,0.00568]
[1766329753238,0.00568,88072.0,88062.0,0.000549]
[1766329753605,0.00568,88072.0,88060.0,0.48242048]
[1766329753606,0.00568,88072.0,88061.0,0.01135576]
[1766329753999,0.00568,88072.0,88060.0,0.51454048]
[1766329754202,0.00568,88072.0,88061.0,0.01135576]
[1766329756996,0.00568,88072.0,88062.0,0.01135563]
[1766329757218,0.00568,88072.0,88061.0,0.01135576]
[1766329758389,0.33778,88072.0,88061.0,0.01135576]
[1766329758589,0.83619,88072.0,88061.0,0.01135576]
[1766329758785,0.3321,88071.0,88061.0,0.01135576]
[1766329762400,0.3321,88071.0,88061.0,0.00568]
[1766329762559,0.3321,88068.0,88061.0,0.00568]
[1766329765689,0.3321,88068.0,88061.0,0.01703576]
[1766329768185,0.3321,88068.0,88061.0,0.00568]
[1766329769898,0.3321,88068.0,88061.0,0.01703576]
[1766329770122,0.3321,88068.0,88061.0,0.00568]
[1766329771256,0.3321,88068.0,88062.0,0.01135563]
[1766329771408,0.3321,88068.0,88061.0,0.01703576]
[1766329772712,0.3321,88068.0,88061.0,0.00568]
[1766329773312,0.3321,88068.0,88061.0,0.00513]
[1766329777161,0.332,88068.0,88061.0,0.00513]
[1766329784415,0.332,88068.0,88061.0,0.01648576]
[1766329785069,0.332,88068.0,88061.0,0.00513]
[1766329791070,0.332,88068.0,88061.0,0.01648576]
[1766329791274,0.332,88068.0,88061.0,0.00513]
[1766329791480,0.332,88068.0,88061.0,0.01648576]
[1766329793152,0.331451,88068.0,88061.0,0.01648576]
[1766329793882,0.49841,88069.0,88061.0,0.01648576]
[1766329797102,0.49841,88069.0,88061.0,0.00513]
[1766329797278,0.49841,88069.0,88061.0,0.01648576]
[1766329797870,0.49841,88069.0,88061.0,0.00513]
[1766329798641,0.49841,88069.0,88061.0,0.01648576]
[1766329798971,0.49841,88069.0,88061.0,0.00513]
[1766329800810,0.49841,88069.0,88061.0,0.01648576]
[1766329801021,0.49841,88069.0,88061.0,0.00513]
[1766329805031,0.79757,88069.0,88061.0,0.00513]
[1766329822910,0.79757,88069.0,88061.0,0.01648576]
[1766329823068,0.79757,88069.0,88061.0,0.00513]
[1766329828918,0.00568,88072.0,88064.0,0.01135537]
[1766329829152,0.28237,88082.0,88070.0,0.0113546]
[1766329829322,0.53439059,88083.0,88072.0,0.01135434]
[1766329829521,0.07340059,88083.0,88078.0,0.01135357]
[1766329829722,0.06099399,88083.0,88080.0,0.01135331]
[1766329829937,2.56e-06,88083.0,88082.0,0.05676528]
[1766329830145,2.56e-06,88083.0,88080.0,0.06811924]
[1766329830592,2.56e-06,88083.0,88080.0,0.01135331]
[1766329830967,2.56e-06,88083.0,88080.0,0.06811987]
[1766329831160,2.56e-06,88083.0,88081.0,0.00568]
[1766329836042,2.56e-06,88083.0,88081.0,0.005131]
[1766329856707,2.56e-06,88083.0,88082.0,0.05676528]
[1766329861654,2.56e-06,88083.0,88081.0,0.005131]
[1766329863191,2.56e-06,88083.0,88082.0,0.05676528]
[1766329865218,2.56e-06,88083.0,88081.0,0.005131]
[1766329866239,2.56e-06,88083.0,88081.0,0.06189635]
[1766329881611,2.56e-06,88083.0,88082.0,0.01362366]
[1766329883102,2.56e-06,88083.0,88081.0,0.06189635]
[1766329883454,2.56e-06,88083.0,88081.0,0.06189644]
[1766329921951,2.56e-06,88083.0,88081.0,0.005131]
[1766329922153,2.56e-06,88083.0,88062.0,0.05677817]
[1766329922154,0.25626,88079.0,88062.0,0.05677817]
[1766329922476,0.25626,88073.0,88065.0,0.01135524]
[1766329922673,0.25626,88073.0,88063.0,0.0170355]
[1766329922837,0.25626,88073.0,88064.0,0.05677688]
[1766329923167,0.25626,88073.0,88068.0,0.01135486]
[1766329923367,0.44111,88074.0,88068.0,0.01135486]
[1766329923737,0.44111,88074.0,88067.0,0.01135499]
[1766329924291,0.44111,88074.0,88066.0,0.01135512]
[1766329924503,0.44111,88074.0,88066.0,0.00694233]
[1766329924759,0.44111,88074.0,88065.0,0.01135524]
[1766329924967,0.44111,88074.0,88067.0,0.01135499]
[1766329925185,0.44111,88074.0,88068.0,0.00568]
[1766329926439,0.01139573,88079.0,88074.0,0.001099]
[1766329926659,0.23706,88092.0,88080.0,0.01135331]
[1766329926875,0.03411263,88095.0,88088.0,0.01135228]
[1766329927079,0.00568,88102.0,88092.0,0.01135176]
[1766329927292,0.00568,88102.0,88091.0,0.01135189]
[1766329927505,0.00568,88102.0,88092.0,0.01135176]
[1766329927744,0.00568,88102.0,88088.0,0.01135228]
[1766329927961,0.23706,88100.0,88087.0,0.03978933]
[1766329928163,0.65196073,88100.0,88087.0,0.03978933]
[1766329928386,0.23706,88099.0,88087.0,0.03978933]
[1766329929009,0.23706,88099.0,88087.0,0.05114174]
[1766329929470,0.23706,88098.0,88087.0,0.05114174]
[1766329929886,0.23706,88098.0,88087.0,0.03978933]
[1766329930089,0.23706,88098.0,88087.0,0.05114174]
[1766329930301,0.23706,88098.0,88088.0,0.01135228]
[1766329930536,0.23706,88098.0,88087.0,0.05114174]
[1766329931017,0.40355,88099.0,88090.0,0.01135202]
[1766329931269,0.40355,88099.0,88091.0,0.01135189]
[1766329931472,0.40355,88099.0,88092.0,0.01135176]
[1766329931625,0.00568,88102.0,88092.0,0.00568]
[1766329932033,0.40355,88101.0,88092.0,0.00568]
[1766329932233,0.23706,88100.0,88092.0,0.00568]
[1766329934325,0.00568,88102.0,88094.0,0.01135151]
[1766329934572,0.24841202,88107.0,88092.0,0.06243862]
[1766329934573,0.23706,88107.0,88099.0,0.01135086]
[1766329934746,0.40355,88110.0,88102.0,0.000549]
[1766329935076,0.24274,88113.0,88102.0,0.000549]
[1766329935238,0.02449694,88112.0,88099.0,0.01135086]